[Event "Titled Tuesday Blitz July 25 Early 2023"]
[White "whiteglovethief"]
[Black "Gubajdullin, Alexei"]
[BlackFideId "4141202"]
[WhiteElo "2493"]
[BlackElo "2690"]
[Result "0-1"]
[Round "11"]
[TimeControl "180+2"]
[Date "2023.07.25"]
[WhiteClock "0:00:00"]
[BlackClock "0:00:14"]
[Board "53"]

1. d4 {[%clk 0:03:00]}  d5 {[%clk 0:02:59]} 2. c4 {[%clk 0:02:56]}  c6 {[%clk 0:02:59]} 3. Nf3 {[%clk 0:02:55]}  Nf6 {[%clk 0:02:57]} 4. e3 {[%clk 0:02:55]}  a6 {[%clk 0:02:57]} 5. Nc3 {[%clk 0:02:52]}  b5 {[%clk 0:02:57]} 6. b3 {[%clk 0:02:52]}  Bg4 {[%clk 0:02:55]} 7. Be2 {[%clk 0:02:51]}  Nbd7 {[%clk 0:02:54]} 8. O-O {[%clk 0:02:48]}  e6 {[%clk 0:02:54]} 9. a4 {[%clk 0:02:48]}  b4 {[%clk 0:02:52]} 10. Na2 {[%clk 0:02:47]}  a5 {[%clk 0:02:52]} 11. c5 {[%clk 0:02:43]}  Qc7 {[%clk 0:02:44]} 12. Bb2 {[%clk 0:02:41]}  Be7 {[%clk 0:02:43]} 13. Nc1 {[%clk 0:02:41]}  O-O {[%clk 0:02:41]} 14. Nd3 {[%clk 0:02:41]}  Ne4 {[%clk 0:02:34]} 15. Nfe5 {[%clk 0:02:35]}  Bxe2 {[%clk 0:02:33]} 16. Qxe2 {[%clk 0:02:36]}  Nxe5 {[%clk 0:02:32]} 17. Nxe5 {[%clk 0:02:35]}  f6 {[%clk 0:02:26]} 18. Nd3 {[%clk 0:02:35]}  Qd7 {[%clk 0:02:18]} 19. f3 {[%clk 0:02:32]}  Ng5 {[%clk 0:02:18]} 20. Rad1 {[%clk 0:02:26]}  Bd8 {[%clk 0:02:17]} 21. Kh1 {[%clk 0:02:26]}  Bc7 {[%clk 0:02:17]} 22. e4 {[%clk 0:02:25]}  Qf7 {[%clk 0:02:13]} 23. e5 {[%clk 0:02:20]}  Qh5 {[%clk 0:02:05]} 24. g4 {[%clk 0:02:16]}  Qh3 {[%clk 0:02:01]} 25. Qg2 {[%clk 0:02:12]}  Qxg2+ {[%clk 0:01:58]} 26. Kxg2 {[%clk 0:02:13]}  fxe5 {[%clk 0:01:58]} 27. dxe5 {[%clk 0:02:12]}  g6 {[%clk 0:01:56]} 28. h4 {[%clk 0:02:09]}  Nf7 {[%clk 0:01:55]} 29. f4 {[%clk 0:02:10]}  Nh6 {[%clk 0:01:55]} 30. Kh3 {[%clk 0:02:04]}  Kf7 {[%clk 0:01:54]} 31. Bd4 {[%clk 0:02:04]}  Ke7 {[%clk 0:01:53]} 32. Kg3 {[%clk 0:01:45]}  Kd7 {[%clk 0:01:53]} 33. Rh1 {[%clk 0:01:42]}  Rg8 {[%clk 0:01:53]} 34. Be3 {[%clk 0:01:35]}  Nf7 {[%clk 0:01:49]} 35. g5 {[%clk 0:01:33]}  h5 {[%clk 0:01:45]} 36. Ne1 {[%clk 0:01:27]}  Nd8 {[%clk 0:01:33]} 37. Nc2 {[%clk 0:01:24]}  Nb7 {[%clk 0:01:32]} 38. Rc1 {[%clk 0:01:21]}  Raf8 {[%clk 0:01:31]} 39. Nd4 {[%clk 0:01:22]}  Bb8 {[%clk 0:01:29]} 40. Nb5 {[%clk 0:01:06]}  Rf7 {[%clk 0:01:18]} 41. Nd6 {[%clk 0:01:06]}  Bxd6 {[%clk 0:01:12]} 42. cxd6 {[%clk 0:01:07]}  Rc8 {[%clk 0:01:10]} 43. Bc5 {[%clk 0:00:57]}  Rcf8 {[%clk 0:01:02]} 44. Rhf1 {[%clk 0:00:57]}  Rf5 {[%clk 0:01:01]} 45. Be3 {[%clk 0:00:55]}  Ra8 {[%clk 0:01:00]} 46. Rc2 {[%clk 0:00:51]}  Ra6 {[%clk 0:00:59]} 47. Rfc1 {[%clk 0:00:50]}  Nd8 {[%clk 0:00:58]} 48. Rc5 {[%clk 0:00:47]}  Nf7 {[%clk 0:00:58]} 49. Rb5 {[%clk 0:00:35]}  cxb5 {[%clk 0:00:32]} 50. Rc7+ {[%clk 0:00:36]}  Ke8 {[%clk 0:00:30]} 51. axb5 {[%clk 0:00:31]}  Ra8 {[%clk 0:00:29]} 52. b6 {[%clk 0:00:29]}  Nd8 {[%clk 0:00:26]} 53. Bc5 {[%clk 0:00:19]}  Rf7 {[%clk 0:00:25]} 54. f5 {[%clk 0:00:11]}  exf5 {[%clk 0:00:17]} 55. b7 {[%clk 0:00:08]}  Rb8 {[%clk 0:00:16]} 56. e6 {[%clk 0:00:07]}  Nxe6 {[%clk 0:00:16]} 57. Rc8+ {[%clk 0:00:06]}  Kd7 {[%clk 0:00:16]} 58. Rxb8 {[%clk 0:00:07]}  Nxc5 {[%clk 0:00:15]} 59. Rd8+ {[%clk 0:00:07]}  Kxd8 {[%clk 0:00:15]} 60. b8=Q+ {[%clk 0:00:08]}  Kd7 {[%clk 0:00:15]} 61. Qc7+ {[%clk 0:00:08]}  Ke6 {[%clk 0:00:15]} 62. Qxc5 {[%clk 0:00:08]}  Rd7 {[%clk 0:00:15]} 63. Kf4 {[%clk 0:00:07]}  Rxd6 {[%clk 0:00:15]} 64. Qc8+ {[%clk 0:00:08]}  Rd7 {[%clk 0:00:14]} 65. Qg8+ {[%clk 0:00:09]}  Ke7 {[%clk 0:00:14]} 66. Qxg6 {[%clk 0:00:09]}  d4 {[%clk 0:00:15]} 67. Qf6+ {[%clk 0:00:09]}  Ke8 {[%clk 0:00:15]} 68. Qe6+ {[%clk 0:00:10]}  Kd8 {[%clk 0:00:15]} 69. Qb6+ {[%clk 0:00:10]}  Ke8 {[%clk 0:00:14]} 70. Kxf5 {[%clk 0:00:10]}  d3 {[%clk 0:00:15]} 71. Qc6 {[%clk 0:00:09]}  d2 {[%clk 0:00:14]} 72. Ke6 {[%clk 0:00:09]}  d1=Q {[%clk 0:00:14]} 73. Qc8+ {[%clk 0:00:09]}  Rd8 {[%clk 0:00:14]} 74. Qc6+ {[%clk 0:00:09]}  Qd7+ {[%clk 0:00:13]} 75. Qxd7+ {[%clk 0:00:07]}  Rxd7 {[%clk 0:00:14]} 76. g6 {[%clk 0:00:00]}  a4 {[%clk 0:00:14]} 0-1


[Site "https://www.chess.com"]

[Event "Titled Tuesday Blitz July 25 Early 2023"]
[White "Martic, Ivan"]
[Black "Omariev, Maksim"]
[WhiteFideId "929301"]
[BlackFideId "4193423"]
[WhiteElo "2647"]
[BlackElo "2439"]
[Result "1-0"]
[Round "11"]
[TimeControl "180+2"]
[Date "2023.07.25"]
[WhiteClock "0:01:22"]
[BlackClock "0:00:00"]
[Board "58"]

1. e4 {[%clk 0:03:00]}  c5 {[%clk 0:03:00]} 2. Nf3 {[%clk 0:03:00]}  d6 {[%clk 0:03:00]} 3. c3 {[%clk 0:03:00]}  Nf6 {[%clk 0:03:00]} 4. h3 {[%clk 0:02:59]}  Nbd7 {[%clk 0:03:00]} 5. Bd3 {[%clk 0:02:56]}  b6 {[%clk 0:03:00]} 6. O-O {[%clk 0:02:54]}  Bb7 {[%clk 0:03:00]} 7. Re1 {[%clk 0:02:54]}  e5 {[%clk 0:02:59]} 8. a4 {[%clk 0:02:47]}  a6 {[%clk 0:02:53]} 9. b3 {[%clk 0:02:35]}  g6 {[%clk 0:02:51]} 10. Bc2 {[%clk 0:02:35]}  Bg7 {[%clk 0:02:52]} 11. d4 {[%clk 0:02:34]}  O-O {[%clk 0:02:49]} 12. d5 {[%clk 0:02:34]}  Nh5 {[%clk 0:02:27]} 13. Nbd2 {[%clk 0:02:34]}  Bh6 {[%clk 0:00:51]} 14. Nc4 {[%clk 0:02:32]}  Bxc1 {[%clk 0:00:51]} 15. Qxc1 {[%clk 0:02:24]}  Qe7 {[%clk 0:00:49]} 16. Qh6 {[%clk 0:02:23]}  f6 {[%clk 0:00:41]} 17. b4 {[%clk 0:02:14]}  Rfb8 {[%clk 0:00:30]} 18. b5 {[%clk 0:02:11]}  axb5 {[%clk 0:00:22]} 19. axb5 {[%clk 0:02:12]}  Rxa1 {[%clk 0:00:23]} 20. Rxa1 {[%clk 0:02:11]}  Ra8 {[%clk 0:00:24]} 21. Rxa8+ {[%clk 0:02:10]}  Bxa8 {[%clk 0:00:24]} 22. Nh2 {[%clk 0:02:08]}  Bb7 {[%clk 0:00:21]} 23. Bd1 {[%clk 0:02:02]}  Ng7 {[%clk 0:00:06]} 24. Nf1 {[%clk 0:01:38]}  Ne8 {[%clk 0:00:06]} 25. Bg4 {[%clk 0:01:32]}  Nc7 {[%clk 0:00:06]} 26. Nfe3 {[%clk 0:01:23]}  Nxb5 {[%clk 0:00:00]} 27. Be6+ {[%clk 0:01:22]} 1-0


[Site "https://www.chess.com"]

[Event "Titled Tuesday Blitz July 25 Early 2023"]
[White "Harriott, Tyrell"]
[Black "Iskusnyh, Sergei"]
[WhiteFideId "2086484"]
[BlackFideId "4120027"]
[WhiteElo "2420"]
[BlackElo "2633"]
[Result "1/2-1/2"]
[Round "11"]
[TimeControl "180+2"]
[Date "2023.07.25"]
[WhiteClock "0:00:10"]
[BlackClock "0:00:04"]
[Board "59"]

1. d4 {[%clk 0:03:00]}  d5 {[%clk 0:02:59]} 2. e3 {[%clk 0:03:01]}  Nf6 {[%clk 0:02:58]} 3. Bd3 {[%clk 0:03:02]}  c5 {[%clk 0:02:57]} 4. c3 {[%clk 0:03:02]}  Nbd7 {[%clk 0:02:54]} 5. f4 {[%clk 0:03:02]}  g6 {[%clk 0:02:52]} 6. Nd2 {[%clk 0:03:02]}  Bg7 {[%clk 0:02:52]} 7. Ngf3 {[%clk 0:03:02]}  O-O {[%clk 0:02:52]} 8. f5 {[%clk 0:03:02]}  Qc7 {[%clk 0:02:46]} 9. O-O {[%clk 0:03:01]}  b6 {[%clk 0:02:26]} 10. Qe1 {[%clk 0:03:01]}  gxf5 {[%clk 0:02:14]} 11. Bxf5 {[%clk 0:03:00]}  Ba6 {[%clk 0:02:14]} 12. Rf2 {[%clk 0:02:54]}  e6 {[%clk 0:02:13]} 13. Bh3 {[%clk 0:02:41]}  Ne8 {[%clk 0:02:12]} 14. e4 {[%clk 0:02:37]}  cxd4 {[%clk 0:02:09]} 15. cxd4 {[%clk 0:02:34]}  dxe4 {[%clk 0:01:44]} 16. Nxe4 {[%clk 0:02:35]}  Ndf6 {[%clk 0:01:26]} 17. Nc3 {[%clk 0:02:27]}  Rd8 {[%clk 0:01:21]} 18. Bg5 {[%clk 0:02:25]}  Bb7 {[%clk 0:01:01]} 19. Rd1 {[%clk 0:02:22]}  b5 {[%clk 0:00:35]} 20. a3 {[%clk 0:02:03]}  Qb6 {[%clk 0:00:34]} 21. Kh1 {[%clk 0:01:53]}  Bxf3 {[%clk 0:00:31]} 22. Rxf3 {[%clk 0:01:53]}  Rxd4 {[%clk 0:00:31]} 23. Rc1 {[%clk 0:01:37]}  Nd5 {[%clk 0:00:28]} 24. Nxd5 {[%clk 0:01:34]}  Rxd5 {[%clk 0:00:27]} 25. Be7 {[%clk 0:01:32]}  Qb7 {[%clk 0:00:17]} 26. Bxf8 {[%clk 0:01:31]}  Bxf8 {[%clk 0:00:17]} 27. Rg3+ {[%clk 0:01:23]}  Bg7 {[%clk 0:00:15]} 28. Qf2 {[%clk 0:01:14]}  Qd7 {[%clk 0:00:15]} 29. Rf1 {[%clk 0:01:12]}  Nd6 {[%clk 0:00:14]} 30. Qf6 {[%clk 0:01:01]}  Ne8 {[%clk 0:00:11]} 31. Qf2 {[%clk 0:00:55]}  f5 {[%clk 0:00:11]} 32. Rg5 {[%clk 0:00:52]}  Nd6 {[%clk 0:00:09]} 33. Qg3 {[%clk 0:00:48]}  Ne4 {[%clk 0:00:09]} 34. Qb8+ {[%clk 0:00:43]}  Qd8 {[%clk 0:00:09]} 35. Qxd8+ {[%clk 0:00:40]}  Rxd8 {[%clk 0:00:10]} 36. Rh5 {[%clk 0:00:35]}  Bxb2 {[%clk 0:00:10]} 37. g4 {[%clk 0:00:33]}  f4 {[%clk 0:00:08]} 38. Rxb5 {[%clk 0:00:29]}  Bc3 {[%clk 0:00:07]} 39. Bg2 {[%clk 0:00:26]}  Nd2 {[%clk 0:00:05]} 40. Rd1 {[%clk 0:00:23]}  e5 {[%clk 0:00:03]} 41. Rc5 {[%clk 0:00:16]}  Bd4 {[%clk 0:00:03]} 42. Rc2 {[%clk 0:00:15]}  Rb8 {[%clk 0:00:04]} 43. Rcxd2 {[%clk 0:00:15]}  Kg7 {[%clk 0:00:03]} 44. Be4 {[%clk 0:00:15]}  Kf6 {[%clk 0:00:03]} 45. Rd3 {[%clk 0:00:16]}  Kg5 {[%clk 0:00:04]} 46. h3 {[%clk 0:00:15]}  Kh4 {[%clk 0:00:04]} 47. Bxh7 {[%clk 0:00:14]}  Rb2 {[%clk 0:00:03]} 48. Be4 {[%clk 0:00:14]}  Be3 {[%clk 0:00:04]} 49. Re1 {[%clk 0:00:13]}  Kg3 {[%clk 0:00:04]} 50. Rdxe3+ {[%clk 0:00:13]}  fxe3 {[%clk 0:00:04]} 51. Rxe3+ {[%clk 0:00:14]}  Kf4 {[%clk 0:00:04]} 52. Re1 {[%clk 0:00:14]}  Kg3 {[%clk 0:00:04]} 53. Re3+ {[%clk 0:00:12]}  Kf4 {[%clk 0:00:04]} 54. Re1 {[%clk 0:00:12]}  Kg3 {[%clk 0:00:04]} 55. Bc6 {[%clk 0:00:12]}  Kf2 {[%clk 0:00:04]} 56. Rc1 {[%clk 0:00:11]}  Kg3 {[%clk 0:00:03]} 57. Rg1+ {[%clk 0:00:11]}  Kxh3 {[%clk 0:00:03]} 58. Rd1 {[%clk 0:00:10]}  Rh2+ {[%clk 0:00:03]} 59. Kg1 {[%clk 0:00:10]}  Rc2 {[%clk 0:00:03]} 60. Bd7 {[%clk 0:00:10]}  e4 {[%clk 0:00:03]} 61. Bf5 {[%clk 0:00:09]}  Kg3 {[%clk 0:00:03]} 62. Re1 {[%clk 0:00:08]}  Rg2+ {[%clk 0:00:03]} 63. Kh1 {[%clk 0:00:09]}  Rh2+ {[%clk 0:00:03]} 64. Kg1 {[%clk 0:00:09]}  Rg2+ {[%clk 0:00:04]} 65. Kf1 {[%clk 0:00:10]}  Rf2+ {[%clk 0:00:04]} 66. Kg1 {[%clk 0:00:10]}  Rg2+ {[%clk 0:00:04]} 1/2-1/2


[Site "https://www.chess.com"]

[Event "Titled Tuesday Blitz July 25 Early 2023"]
[White "Kazakouski, Valery"]
[Black "Vujacic, Igor"]
[WhiteFideId "13507443"]
[BlackFideId "932620"]
[WhiteElo "2825"]
[BlackElo "2385"]
[Result "1-0"]
[Round "11"]
[TimeControl "180+2"]
[Date "2023.07.25"]
[WhiteClock "0:00:18"]
[BlackClock "0:00:00"]
[Board "62"]

1. Nf3 {[%clk 0:03:00]}  d5 {[%clk 0:02:59]} 2. c4 {[%clk 0:03:01]}  e6 {[%clk 0:02:59]} 3. g3 {[%clk 0:03:01]}  Nf6 {[%clk 0:03:00]} 4. b3 {[%clk 0:03:01]}  Be7 {[%clk 0:02:59]} 5. Bg2 {[%clk 0:03:01]}  O-O {[%clk 0:03:00]} 6. O-O {[%clk 0:03:02]}  b6 {[%clk 0:03:00]} 7. Bb2 {[%clk 0:03:02]}  Bb7 {[%clk 0:03:00]} 8. Nc3 {[%clk 0:03:01]}  c5 {[%clk 0:02:53]} 9. e3 {[%clk 0:03:01]}  Ne4 {[%clk 0:02:52]} 10. cxd5 {[%clk 0:02:59]}  Nxc3 {[%clk 0:02:51]} 11. dxc3 {[%clk 0:02:52]}  Bxd5 {[%clk 0:02:50]} 12. Qc2 {[%clk 0:02:51]}  Nd7 {[%clk 0:02:35]} 13. Rad1 {[%clk 0:02:46]}  Qc7 {[%clk 0:02:31]} 14. c4 {[%clk 0:02:39]}  Bc6 {[%clk 0:02:28]} 15. h4 {[%clk 0:02:38]}  h6 {[%clk 0:02:23]} 16. Rd2 {[%clk 0:02:31]}  Rad8 {[%clk 0:02:11]} 17. Rfd1 {[%clk 0:02:31]}  Bf6 {[%clk 0:01:15]} 18. Nh2 {[%clk 0:02:19]}  Bxg2 {[%clk 0:00:59]} 19. Kxg2 {[%clk 0:02:20]}  Bxb2 {[%clk 0:00:51]} 20. Qxb2 {[%clk 0:02:21]}  Nf6 {[%clk 0:00:50]} 21. Nf3 {[%clk 0:02:12]}  Ne4 {[%clk 0:00:37]} 22. Rxd8 {[%clk 0:02:10]}  Rxd8 {[%clk 0:00:36]} 23. Qe5 {[%clk 0:02:10]}  Nd6 {[%clk 0:00:26]} 24. h5 {[%clk 0:02:06]}  Qe7 {[%clk 0:00:18]} 25. Nh4 {[%clk 0:02:01]}  Ne8 {[%clk 0:00:16]} 26. Rxd8 {[%clk 0:01:49]}  Qxd8 {[%clk 0:00:17]} 27. Nf3 {[%clk 0:01:01]}  Nf6 {[%clk 0:00:10]} 28. Nh2 {[%clk 0:00:58]}  Qa8+ {[%clk 0:00:08]} 29. Kg1 {[%clk 0:00:53]}  Qd8 {[%clk 0:00:08]} 30. Nf1 {[%clk 0:00:43]}  Kh7 {[%clk 0:00:06]} 31. Kg2 {[%clk 0:00:35]}  Qd1 {[%clk 0:00:06]} 32. Qc7 {[%clk 0:00:33]}  Qd7 {[%clk 0:00:06]} 33. Qxd7 {[%clk 0:00:31]}  Nxd7 {[%clk 0:00:07]} 34. g4 {[%clk 0:00:32]}  Kg8 {[%clk 0:00:06]} 35. f4 {[%clk 0:00:31]}  Kf8 {[%clk 0:00:06]} 36. Kf3 {[%clk 0:00:31]}  Ke7 {[%clk 0:00:06]} 37. Ng3 {[%clk 0:00:32]}  Nf6 {[%clk 0:00:05]} 38. g5 {[%clk 0:00:30]}  Ng8 {[%clk 0:00:06]} 39. Ne4 {[%clk 0:00:29]}  f6 {[%clk 0:00:03]} 40. gxf6+ {[%clk 0:00:18]}  gxf6 {[%clk 0:00:04]} 41. f5 {[%clk 0:00:17]}  exf5 {[%clk 0:00:03]} 42. Nc3 {[%clk 0:00:17]}  Ke6 {[%clk 0:00:02]} 43. Nb5 {[%clk 0:00:18]}  a6 {[%clk 0:00:02]} 44. Nc7+ {[%clk 0:00:18]}  Kd7 {[%clk 0:00:02]} 45. Nd5 {[%clk 0:00:17]}  Kc6 {[%clk 0:00:01]} 46. Kf4 {[%clk 0:00:17]}  b5 {[%clk 0:00:02]} 47. Kxf5 {[%clk 0:00:17]}  bxc4 {[%clk 0:00:00]} 48. bxc4 {[%clk 0:00:18]} 1-0


[Site "https://www.chess.com"]

[Event "Titled Tuesday Blitz July 25 Early 2023"]
[White "Shuvalova, Polina"]
[Black "Onufrienko, Vladislav"]
[WhiteFideId "24171760"]
[BlackFideId "13804332"]
[WhiteElo "2659"]
[BlackElo "2490"]
[Result "1/2-1/2"]
[Round "11"]
[TimeControl "180+2"]
[Date "2023.07.25"]
[WhiteClock "0:00:03"]
[BlackClock "0:00:03"]
[Board "65"]

1. e4 {[%clk 0:03:00]}  Nf6 {[%clk 0:02:59]} 2. d3 {[%clk 0:02:59]}  e5 {[%clk 0:02:59]} 3. Nf3 {[%clk 0:02:58]}  Nc6 {[%clk 0:02:59]} 4. g3 {[%clk 0:02:56]}  Bc5 {[%clk 0:03:00]} 5. Bg2 {[%clk 0:02:56]}  O-O {[%clk 0:02:59]} 6. O-O {[%clk 0:02:56]}  d5 {[%clk 0:03:00]} 7. exd5 {[%clk 0:02:53]}  Nxd5 {[%clk 0:03:01]} 8. Nc3 {[%clk 0:02:52]}  Be6 {[%clk 0:02:59]} 9. Ng5 {[%clk 0:02:51]}  Nxc3 {[%clk 0:02:59]} 10. bxc3 {[%clk 0:02:44]}  Bd5 {[%clk 0:02:59]} 11. Ne4 {[%clk 0:02:30]}  Be7 {[%clk 0:02:58]} 12. c4 {[%clk 0:02:24]}  Be6 {[%clk 0:02:58]} 13. Rb1 {[%clk 0:02:24]}  Rb8 {[%clk 0:02:52]} 14. Nc3 {[%clk 0:02:21]}  Bc5 {[%clk 0:02:41]} 15. Nd5 {[%clk 0:02:16]}  Nd4 {[%clk 0:02:26]} 16. Be3 {[%clk 0:02:14]}  c6 {[%clk 0:02:25]} 17. Nc3 {[%clk 0:02:14]}  Be7 {[%clk 0:02:20]} 18. Re1 {[%clk 0:02:12]}  Re8 {[%clk 0:02:16]} 19. a4 {[%clk 0:02:10]}  Bf8 {[%clk 0:02:13]} 20. Bd2 {[%clk 0:02:09]}  f6 {[%clk 0:02:04]} 21. Ne4 {[%clk 0:02:07]}  Bf7 {[%clk 0:02:00]} 22. a5 {[%clk 0:02:00]}  a6 {[%clk 0:01:56]} 23. h3 {[%clk 0:01:44]}  Be7 {[%clk 0:01:56]} 24. h4 {[%clk 0:01:29]}  h6 {[%clk 0:01:53]} 25. g4 {[%clk 0:01:24]}  Bf8 {[%clk 0:01:42]} 26. Ng3 {[%clk 0:01:23]}  f5 {[%clk 0:01:29]} 27. Nxf5 {[%clk 0:01:19]}  Nxf5 {[%clk 0:01:29]} 28. gxf5 {[%clk 0:01:20]}  Qxh4 {[%clk 0:01:29]} 29. Qf3 {[%clk 0:01:19]}  Bd6 {[%clk 0:01:23]} 30. Re4 {[%clk 0:01:18]}  Qf6 {[%clk 0:01:20]} 31. Bh3 {[%clk 0:01:06]}  Kh8 {[%clk 0:01:20]} 32. Bg4 {[%clk 0:01:06]}  Rf8 {[%clk 0:01:20]} 33. Kg2 {[%clk 0:01:05]}  Bg8 {[%clk 0:01:17]} 34. Rh1 {[%clk 0:01:05]}  Bh7 {[%clk 0:01:16]} 35. Rh5 {[%clk 0:01:01]}  Rf7 {[%clk 0:01:16]} 36. Be3 {[%clk 0:01:00]}  Rbf8 {[%clk 0:01:12]} 37. Qh3 {[%clk 0:00:59]}  Kg8 {[%clk 0:01:10]} 38. Bg5 {[%clk 0:00:46]}  Qxg5 {[%clk 0:00:54]} 39. Rxg5 {[%clk 0:00:46]}  hxg5 {[%clk 0:00:55]} 40. c5 {[%clk 0:00:44]}  Bc7 {[%clk 0:00:51]} 41. f3 {[%clk 0:00:21]}  Bxf5 {[%clk 0:00:39]} 42. Bxf5 {[%clk 0:00:21]}  Rxf5 {[%clk 0:00:40]} 43. Rb4 {[%clk 0:00:22]}  Rf4 {[%clk 0:00:28]} 44. Qe6+ {[%clk 0:00:18]}  Kh8 {[%clk 0:00:18]} 45. Qh3+ {[%clk 0:00:11]}  Kg8 {[%clk 0:00:18]} 46. Qe6+ {[%clk 0:00:10]}  Kh7 {[%clk 0:00:18]} 47. Rxf4 {[%clk 0:00:11]}  Rxf4 {[%clk 0:00:11]} 48. Qe7 {[%clk 0:00:09]}  Bxa5 {[%clk 0:00:06]} 49. Qxg5 {[%clk 0:00:08]}  Bc3 {[%clk 0:00:05]} 50. Qe7 {[%clk 0:00:06]}  Rb4 {[%clk 0:00:04]} 51. Kh3 {[%clk 0:00:02]}  a5 {[%clk 0:00:04]} 52. Qf7 {[%clk 0:00:01]}  a4 {[%clk 0:00:01]} 53. Qh5+ {[%clk 0:00:02]}  Kg8 {[%clk 0:00:02]} 54. Qe8+ {[%clk 0:00:03]}  Kh7 {[%clk 0:00:02]} 55. Qh5+ {[%clk 0:00:04]}  Kg8 {[%clk 0:00:02]} 56. Qe8+ {[%clk 0:00:04]}  Kh7 {[%clk 0:00:03]} 57. Qh5+ {[%clk 0:00:03]} 1/2-1/2


[Site "https://www.chess.com"]

[Event "Titled Tuesday Blitz July 25 Early 2023"]
[White "Estrada Nieto, Julian"]
[Black "Mamedov, Edgar"]
[WhiteFideId "5101018"]
[BlackFideId "13739980"]
[WhiteElo "2477"]
[BlackElo "2613"]
[Result "0-1"]
[Round "11"]
[TimeControl "180+2"]
[Date "2023.07.25"]
[WhiteClock "0:00:00"]
[BlackClock "0:00:24"]
[Board "68"]

1. e4 {[%clk 0:03:00]}  c5 {[%clk 0:02:58]} 2. Nf3 {[%clk 0:03:00]}  Nc6 {[%clk 0:02:57]} 3. Bb5 {[%clk 0:03:00]}  e5 {[%clk 0:02:56]} 4. O-O {[%clk 0:02:56]}  Bd6 {[%clk 0:02:51]} 5. c3 {[%clk 0:02:48]}  a6 {[%clk 0:02:46]} 6. Bxc6 {[%clk 0:02:43]}  dxc6 {[%clk 0:02:45]} 7. d4 {[%clk 0:02:44]}  exd4 {[%clk 0:02:44]} 8. cxd4 {[%clk 0:02:44]}  Bg4 {[%clk 0:02:44]} 9. dxc5 {[%clk 0:02:34]}  Bxc5 {[%clk 0:02:42]} 10. Qc2 {[%clk 0:02:34]}  Ba7 {[%clk 0:02:21]} 11. Rd1 {[%clk 0:02:13]}  Qf6 {[%clk 0:02:20]} 12. Nbd2 {[%clk 0:01:56]}  Ne7 {[%clk 0:02:14]} 13. e5 {[%clk 0:01:48]}  Qg6 {[%clk 0:02:11]} 14. Qxg6 {[%clk 0:01:47]}  Nxg6 {[%clk 0:02:09]} 15. h3 {[%clk 0:01:42]}  Be6 {[%clk 0:02:04]} 16. Ne4 {[%clk 0:01:37]}  O-O {[%clk 0:02:03]} 17. Nd6 {[%clk 0:01:33]}  Bd5 {[%clk 0:01:46]} 18. Nxb7 {[%clk 0:01:23]}  Bxf3 {[%clk 0:01:22]} 19. gxf3 {[%clk 0:01:23]}  Nxe5 {[%clk 0:01:23]} 20. Kg2 {[%clk 0:01:24]}  Rab8 {[%clk 0:01:22]} 21. Na5 {[%clk 0:01:21]}  Rb5 {[%clk 0:01:17]} 22. Nb3 {[%clk 0:00:47]}  Ng6 {[%clk 0:01:15]} 23. Be3 {[%clk 0:00:42]}  Nh4+ {[%clk 0:01:13]} 24. Kg3 {[%clk 0:00:33]}  Nf5+ {[%clk 0:01:07]} 25. Kf4 {[%clk 0:00:34]}  Nxe3 {[%clk 0:00:54]} 26. fxe3 {[%clk 0:00:34]}  g5+ {[%clk 0:00:48]} 27. Kg3 {[%clk 0:00:25]}  Bxe3 {[%clk 0:00:47]} 28. Rd3 {[%clk 0:00:19]}  Bf4+ {[%clk 0:00:40]} 29. Kg2 {[%clk 0:00:19]}  Re8 {[%clk 0:00:38]} 30. Kf1 {[%clk 0:00:18]}  a5 {[%clk 0:00:37]} 31. Rb1 {[%clk 0:00:15]}  a4 {[%clk 0:00:36]} 32. Nd4 {[%clk 0:00:15]}  Rd5 {[%clk 0:00:35]} 33. Rbd1 {[%clk 0:00:12]}  Re3 {[%clk 0:00:29]} 34. Rxe3 {[%clk 0:00:06]}  Bxe3 {[%clk 0:00:30]} 35. Rd3 {[%clk 0:00:04]}  Bxd4 {[%clk 0:00:29]} 36. b3 {[%clk 0:00:04]}  axb3 {[%clk 0:00:29]} 37. axb3 {[%clk 0:00:05]}  Kg7 {[%clk 0:00:29]} 38. b4 {[%clk 0:00:05]}  Bb6 {[%clk 0:00:27]} 39. Rc3 {[%clk 0:00:05]}  Rb5 {[%clk 0:00:26]} 40. Rxc6 {[%clk 0:00:04]}  Rxb4 {[%clk 0:00:26]} 41. Kg2 {[%clk 0:00:05]}  Rb2+ {[%clk 0:00:26]} 42. Kf1 {[%clk 0:00:04]}  Be3 {[%clk 0:00:25]} 43. Ke1 {[%clk 0:00:03]}  Bf4 {[%clk 0:00:25]} 44. Rc3 {[%clk 0:00:00]}  Bd2+ {[%clk 0:00:24]} 0-1


[Site "https://www.chess.com"]

[Event "Titled Tuesday Blitz July 25 Early 2023"]
[White "Vlassov, Nikolai"]
[Black "ZugZwang1201"]
[WhiteFideId "4103360"]
[WhiteElo "2572"]
[BlackElo "2455"]
[Result "0-1"]
[Round "11"]
[TimeControl "180+2"]
[Date "2023.07.25"]
[WhiteClock "0:00:01"]
[BlackClock "0:00:26"]
[Board "69"]

1. e4 {[%clk 0:03:00]}  c5 {[%clk 0:03:00]} 2. c3 {[%clk 0:03:00]}  e6 {[%clk 0:03:00]} 3. d4 {[%clk 0:03:00]}  a6 {[%clk 0:03:01]} 4. d5 {[%clk 0:02:59]}  Qc7 {[%clk 0:03:01]} 5. Nf3 {[%clk 0:02:56]}  d6 {[%clk 0:03:00]} 6. dxe6 {[%clk 0:02:54]}  fxe6 {[%clk 0:02:58]} 7. Bd3 {[%clk 0:02:50]}  Nf6 {[%clk 0:02:56]} 8. O-O {[%clk 0:02:51]}  Be7 {[%clk 0:02:55]} 9. Bf4 {[%clk 0:02:50]}  Nc6 {[%clk 0:02:53]} 10. Re1 {[%clk 0:02:49]}  Ne5 {[%clk 0:02:53]} 11. Nxe5 {[%clk 0:02:44]}  dxe5 {[%clk 0:02:54]} 12. Bg3 {[%clk 0:02:44]}  O-O {[%clk 0:02:51]} 13. Qe2 {[%clk 0:02:40]}  b5 {[%clk 0:02:49]} 14. Nd2 {[%clk 0:02:36]}  c4 {[%clk 0:02:45]} 15. Bc2 {[%clk 0:02:37]}  Bb7 {[%clk 0:02:44]} 16. Nf3 {[%clk 0:02:36]}  Bd6 {[%clk 0:02:21]} 17. Rad1 {[%clk 0:02:32]}  Rad8 {[%clk 0:02:21]} 18. Ng5 {[%clk 0:02:19]}  Qe7 {[%clk 0:02:08]} 19. Rd2 {[%clk 0:02:17]}  h6 {[%clk 0:02:04]} 20. Nf3 {[%clk 0:02:16]}  Nh5 {[%clk 0:02:03]} 21. Bxe5 {[%clk 0:02:07]}  Bxe5 {[%clk 0:01:26]} 22. Rxd8 {[%clk 0:02:06]}  Qxd8 {[%clk 0:01:20]} 23. Nxe5 {[%clk 0:02:05]}  Nf4 {[%clk 0:01:18]} 24. Qg4 {[%clk 0:01:38]}  h5 {[%clk 0:01:08]} 25. Qg3 {[%clk 0:00:41]}  Qd2 {[%clk 0:01:03]} 26. Qe3 {[%clk 0:00:30]}  Qxc2 {[%clk 0:01:01]} 27. Nd7 {[%clk 0:00:30]}  Nd3 {[%clk 0:00:50]} 28. Nxf8 {[%clk 0:00:23]}  Nxe1 {[%clk 0:00:48]} 29. Nxe6 {[%clk 0:00:01]}  Qd1 {[%clk 0:00:26]} 0-1


[Site "https://www.chess.com"]